Cogmind - Beta 15 @@@ ROGUE MODE // 2025.06.22 @ 22:36:18 Player: Skysub Result: Destroyed by UF-XEN(R) with Subdweller Shrapnel Launcher Performance ------------- Evolutions (0) 0 Regions Visited (2) 400 Robots Destroyed (36) 180 Value Destroyed (614) 614 Prototype IDs (0) 0 Alien Tech Used (0) 0 Bonus (0) 0 TOTAL SCORE: 1194 Bonus ------- None Cogmind --------- Core Integrity 0/250 Matter 263/300 Energy 100/100 System Corruption 0% Temperature Cool (0) Movement Rolling (110) Location -10/Subcaves Parts ------- > --- POWER (1) -------- (None) > --- PROPULSION (2) --- Subdweller Monowheel > --- UTILITY (2) ------ Small Storage Unit Structural Scanner > --- WEAPON (2) ------- Subdweller Laser Light Assault Rifle > --- INVENTORY (8) ---- Subdweller Optics Subdweller Optics Sensor Array Scrap Shield Subdweller Machine Gun Peak State ------------ > --- POWER ------------ Subdweller Power Source > --- PROPULSION ------- Subdweller Monowheel Subdweller Monowheel > --- UTILITY ---------- Small Storage Unit Structural Scanner > --- WEAPON ----------- Light Assault Rifle Subdweller Machine Gun > --- INVENTORY -------- Light Ion Engine Subdweller Optics Sensor Array Scrap Shield Subdweller Laser [Rating: 12] Favorites ----------- Power Ion Engine Engine Ion Engine Propulsion Light Treads Treads Light Treads Wheel Subdweller Monowheel Utility Small Storage Unit Device Structural Scanner Storage Small Storage Unit Weapon Light Assault Rifle Energy Gun Medium Laser Ballistic Gun Light Assault Rifle Build | -11 -10 -10 ------- Run | Yrd Mat Sub Slots Evolved . | . . . Power . | . . . Propulsion . | . . . Utility . | . . . Weapon . | . . . Parts Attached 17 | 8 3 6 Power 2 | 1 . 1 Engine 2 | 1 . 1 Core . | . . . Reactor . | . . . Propulsion 6 | 2 1 3 Treads 3 | 2 1 . Leg . | . . . Wheel 3 | . . 3 Hover . | . . . Flight . | . . . Utility 3 | 2 1 . Device 2 | 1 1 . Storage 1 | 1 . . Processor . | . . . Hackware . | . . . Protection . | . . . Artifact . | . . . Weapon 6 | 3 1 2 Energy Gun 4 | 3 . 1 Energy Cannon . | . . . Ballistic Gun 2 | . 1 1 Ballistic Cannon . | . . . Launcher . | . . . Special Weapon . | . . . Impact Weapon . | . . . Slashing Weapon . | . . . Piercing Weapon . | . . . Special Melee Weapon . | . . . Unidentified Prototypes . | . . . Parts Lost 7 | . 2 5 Power 2 | . . 2 Propulsion 4 | . 2 2 Utility . | . . . Weapon 1 | . . 1 Highest Loss Streak 2 | . 1 2 To Critical Strikes . | . . . Average Backups 4 | 2 3 4 Power . | . 1 . Propulsion . | . 1 . Utility . | . . 2 Weapon 1 | . 1 1 Tool/Special . | . . . Unused Backups 6 | . . 6 Power 1 | . . 1 Propulsion . | . . . Utility 5 | . . 5 Weapon . | . . . Tool/Special . | . . . Average Slot Usage (%) 97 | . 98 96 Engine 13 | . 14 13 Treads 19 | . 26 7 Wheel 7 | . . 20 Device 14 | . 14 14 Storage 14 | . 14 14 Energy Gun 10 | . 15 2 Ballistic Gun 16 | . 12 23 Peak Build Rating 12 | 9 9 12 Average Rating 8 | 6 8 9 On Entrance 5 | . 9 6 Naked Turns . | . . . Heaviest Build 16 | 15 14 16 Greatest Support 40 | 40 40 40 Greatest Overweight (x) 1 | . . 1 Average Overweight (x) . | . . . Largest Inventory Capacity 8 | 8 8 8 Average Capacity 7 | 7 8 8 Most Carried 8 | 3 4 8 Average Carried 4 | 2 3 5 Final Capacity 8 | 8 8 8 Final Carried 6 | 3 4 6 Class Distribution -------------------- 75% | Mutant 24% | Scavenger-Mutant Dominant Class ---------------- Mutant | -10/Materials Scavenger-Mutant | -10/Subcaves Resources | -11 -10 -10 ----------- Run | Yrd Mat Sub Matter Collected 507 | 222 160 125 Remotely . | . . . Salvage Created 1158 | 213 822 123 Parts 83 | 13 58 12 Haulers Intercepted 1 | . 1 . Recyclers Shooed . | . . . Parts Field Recycled . | . . . Retrieved Matter . | . . . Parts Self-Destructed 5 | . . 5 Prevented . | . . . Kills | -11 -10 -10 ------- Run | Yrd Mat Sub Combat Hostiles Destroyed 21 | . 18 3 Guns 21 | . 18 3 Classes Destroyed 9 | 3 5 1 Worker 2 | 1 1 . Builder 5 | . 5 . Tunneler 4 | 4 . . Hauler 1 | . 1 . Recycler 2 | 1 1 . Watcher 1 | . 1 . Swarmer 9 | . 9 . Grunt 9 | . 9 . Subdweller 3 | . . 3 Best Kill Streak 7 | 4 7 2 Combat Bots Only 5 | . 5 2 Max Kills in Single Turn 2 | 1 2 1 Gunslinging . | . . . Exploded . | . . . Melee . | . . . Uniques/NPCs Destroyed . | . . . Combat | -11 -10 -10 -------- Run | Yrd Mat Sub Hostile Shots Fired 115 | . 82 33 Missed 31 | . 21 10 Hits 84 | . 61 23 Projectile 84 | . 61 23 AOE 3 | . . 3 Damage Taken 1147 | . 667 480 Core 265 | . 103 162 Absorbed by Shields . | . . . Core Remaining (%) 100 | 100 . . Volleys Fired 167 | 17 85 65 Largest 2 | 2 2 2 Hottest 100 | 100 90 80 Shots Fired 281 | 34 169 78 Gun 281 | 34 169 78 Cannon . | . . . Launcher . | . . . Special . | . . . Kinetic 152 | . 80 72 Thermal 129 | 34 89 6 Explosive . | . . . Electromagnetic . | . . . Robot Hit Streak 14 | 6 14 12 Robot Miss Streak 6 | 4 3 6 Penetration Max . | . . . Secondary Targets 2 | . 2 . Max Gunslinging Chain 1 | . 1 . Shots Hit Robots 143 | 18 107 18 Core Hits 62 | 7 49 6 Critical Kills . | . . . Critical Parts Destroyed 1 | . 1 . Critical Strikes 8 | 3 5 . Burn 7 | 3 4 . Destroy 1 | . 1 . Melee Attacks . | . . . Impact . | . . . Slashing . | . . . Piercing . | . . . Sneak Attacks . | . . . Combat Hostiles . | . . . Follow-up Attacks . | . . . Damage Inflicted 1596 | 240 1103 253 Guns 1596 | 240 1103 253 Cannons . | . . . Explosions . | . . . Melee . | . . . Ramming . | . . . Kinetic 622 | . 402 220 Thermal 974 | 240 701 33 Explosive . | . . . Electromagnetic . | . . . Impact . | . . . Slashing . | . . . Piercing . | . . . Highest Corruption . | . . . Average Corruption . | . . . Corruption Purged . | . . . Corruption Blocked . | . . . Overload Shots . | . . . Overflow Damage . | . . . Projectiles . | . . . Explosions . | . . . Melee . | . . . Knockbacks . | . . . Impact . | . . . Kinetic . | . . . Secondary . | . . . Self-Inflicted Damage . | . . . Shots . | . . . Rammed . | . . . Targets Rammed . | . . . Kicked . | . . . Crushed . | . . . Highest Temperature 252 | 154 252 . Average Temperature 76 | 70 78 . Received Heat Transfer 267 | . 204 63 Effects 5 | . 5 . Energy Bleed 2 | . 2 . Interference 3 | . 3 . Siege Activations . | . . . Martial Activations . | . . . Shielding Activations . | . . . Robots Disrupted . | . . . Combat Hostiles . | . . . Robots Corrupted . | . . . Combat Hostiles . | . . . Parts Fried . | . . . Impact Corruptions . | . . . Robots Melted . | . . . Combat Hostiles . | . . . Parts Melted 3 | 1 2 . Heat Transferred 3285 | 866 2357 62 Parts Sabotaged . | . . . Parts Stolen . | . . . Parts Stripped . | . . . Power Chain Reactions . | . . . Alert | -11 -10 -10 ------- Run | Yrd Mat Sub Maximum Alert Level 1 | . 1 . Low Security (%) 95 | 100 95 . Level 1 4 | . 4 . Level 2 . | . . . Level 3 . | . . . Level 4 . | . . . Level 5 . | . . . High Security . | . . . Max Security . | . . . Peak Influence 209 | 10 209 . Initial . | . . . Average 92 | 1 104 . Influence Increases 570 | 30 540 . Destroy 0b10 Robot/C 360 | . 360 . Destroy 0b10 Robot/NC 75 | 30 45 . Destroy Leader 74 | . 74 . Select Force Hacks 30 | . 30 . Destroy Structure 1 | . 1 . Lose Combat Pursuer 30 | . 30 . Influence Decreases 570 | 30 431 109 Entered New Map 53 | . . 53 Time Decay 487 | 30 411 46 Lost Part 30 | . 20 10 Squads Dispatched 3 | . 3 . Investigation 2 | . 2 . Extermination . | . . . Reinforcement 1 | . 1 . Assault . | . . . Garrison . | . . . Intercept . | . . . Searches Triggered . | . . . Construction Impeded . | . . . Haulers Reinforced . | . . . Active Scanning Responses . | . . . Cargo Convoy Interrupts . | . . . Stealth | -11 -10 -10 --------- Run | Yrd Mat Sub Distress Signals 2 | . 2 . Communications Jammed . | . . . Distress Signals . | . . . Times Spotted 42 | . 30 12 Peak Tracking Total 5 | . 5 3 Tactical Retreats 1 | . 1 . Traps | -11 -10 -10 ------- Run | Yrd Mat Sub Traps Triggered 3 | . 3 . Indirectly . | . . . Trap Hack Attempts . | . . . Triggered . | . . . Disarmed . | . . . Reprogrammed . | . . . Reused . | . . . Traps Extracted . | . . . Installed . | . . . Triggered . | . . . Machines | -11 -10 -10 ---------- Run | Yrd Mat Sub Machines Disabled . | . . . Max in Single Turn . | . . . Machines Repaired . | . . . Machines Dismantled . | . . . Machines Sabotaged . | . . . Overloaded Fab Kills . | . . . Hacking | -11 -10 -10 --------- Run | Yrd Mat Sub Machines Accessed 2 | . 2 . Terminals . | . . . Fabricators . | . . . Repair Stations . | . . . Recycling Units 2 | . 2 . Scanalyzers . | . . . Garrison Access . | . . . Total Hacks 5 | . 5 . Successful 3 | . 3 . Failed 2 | . 2 . Catastrophic . | . . . Database Lockouts . | . . . Manual 1 | . 1 . Terminals . | . . . Fabricators . | . . . Repair Stations . | . . . Recycling Units 5 | . 5 . Scanalyzers . | . . . Garrison Access . | . . . Terminal Hacks . | . . . Fabricator Hacks . | . . . Repair Station Hacks . | . . . Recycling Unit Hacks 2 | . 2 . Report Inventory 2 | . 2 . Scanalyzer . | . . . Garrison Access Hacks . | . . . Unauthorized Hacks 1 | . 1 . Terminals . | . . . Fabricators . | . . . Repair Stations . | . . . Recycling Units 1 | . 1 . Tunnel 1 | . 1 . Scanalyzers . | . . . Garrison Access . | . . . Data Cores Recovered . | . . . Used . | . . . Hacking Detections 1 | . 1 . Full Trace Events . | . . . Feedback Events . | . . . Feedback Blocked . | . . . Robot Schematics Acquired . | . . . Robots Built . | . . . Authchips . | . . . Time . | . . . Total Robot Build Rating . | . . . Part Schematics Acquired . | . . . Parts Built . | . . . Authchips . | . . . Time . | . . . Total Part Build Rating . | . . . Parts Repaired . | . . . Time . | . . . Parts Recycled . | . . . Recycled Matter . | . . . Retrieved Matter . | . . . Retrieved Components . | . . . Parts Scanalyzed . | . . . Part Schematics Acquired . | . . . Parts Damaged . | . . . Bothacking | -11 -10 -10 ------------ Run | Yrd Mat Sub Used RIF Installer . | . . . Robots Hacked . | . . . Non-combat . | . . . Combat . | . . . Robot Hacks Applied . | . . . Relay Couplers Released . | . . . Fabnet Peak Effective % . | . . . Robots Rewired . | . . . Allies Hacked . | . . . Hacks Repelled . | . . . Allies | -11 -10 -10 -------- Run | Yrd Mat Sub Total Allies . | . . . Largest Group . | . . . Highest-Rated Group . | . . . Highest-Rated Ally . | . . . Total Orders . | . . . Ally Attacks . | . . . Total Damage . | . . . Kills . | . . . Allies Corrupted . | . . . Allies Melted . | . . . Intel | -11 -10 -10 ------- Run | Yrd Mat Sub Active Infowar (turns) 1990 | 86 1158 746 Terrain 870 | 86 784 . Structural 1120 | . 374 746 Robot Analysis Total . | . . . Derelict Logs Recovered . | . . . Drone Launches . | . . . Drone Recoveries . | . . . Exploration | -11 -10 -10 ------------- Run | Yrd Mat Sub Turns Passed 2069 | 144 1179 746 Spaces Moved 1135 | 50 534 551 Core 1 | 1 . . Treads 591 | 49 534 8 Legs . | . . . Wheels 543 | . . 543 Hover . | . . . Flight . | . . . Fastest Speed 50 | 50 160 95 Average Speed 132 | 157 160 104 Slowest Speed 160 | 160 160 160 Overloaded Moves . | . . . Propulsion Burnouts . | . . . Robots Hopped . | . . . Potential Cave-ins 3 | . . 3 Cave-ins Triggered . | . . . Exploration Rate (%) 49 | 6 95 46 Regions Visited 2 Branch Regions 1 Pre-discovered Areas 1 | . 1 . Known Exits Taken . | . . . Unknown Exits Taken 2 | 1 1 . Scrap Searched . | . . . Spaces Dug 5 | . . 5 Terrain Destroyed 7 | . . 7 Melee . | . . . Projectile 7 | . . 7 AOE . | . . . Terrain Rammed . | . . . Walls Destroyed . | . . . Machines Disabled . | . . . Actions | -11 -10 -10 --------- Run | Yrd Mat Sub Total 1430 | 77 704 649 Wait 95 | . 82 13 Move 1133 | 49 533 551 Hop . | . . . Pick Up 13 | 3 1 9 Fast Attach 9 | 7 1 1 Attach 4 | . . 4 Detach . | . . . Swap 4 | 1 2 1 Drop 5 | . . 5 Fire 167 | 17 85 65 Melee . | . . . Ram . | . . . Kick . | . . . Crush . | . . . Escape Stasis . | . . . Rewire . | . . . Trap . | . . . Miscellaneous . | . . . Route ------- -11/Scrapyard -10/Materials (discovered 6 exits: [*Mat x3] / [*Min x2] / [*Sub]) -10/Subcaves (discovered 2 exits: [*Mat] / [*Scr]) History --------- Turn | Location | Event 7 | -11/Scrapyard | Discovered new exit (range 16) 145 | -11/Scrapyard | Entered Materials 301 | -10/Materials | Build established: Mutant 321 | -10/Materials | Discovered new exit (range 15) 496 | -10/Materials | Discovered new exit (range 10) 506 | -10/Materials | Discovered new exit (range 16) 738 | -10/Materials | Discovered new exit (range 15) 982 | -10/Materials | Discovered new exit (range 16) 1079 | -10/Materials | Discovered new exit (range 14) 1324 | -10/Materials | Entered Subcaves 1325 | -10/Subcaves | Approached by a straggling Scientist 1394 | -10/Subcaves | Core integrity fell below 50% 1439 | -10/Subcaves | Scientist uncovered a shortcut to Scraptown 1521 | -10/Subcaves | Discovered new exit (range 8) 1824 | -10/Subcaves | Core integrity fell below 20% 1867 | -10/Subcaves | Build established: Scavenger-Mutant 2070 | -10/Subcaves | Destroyed by UF-XEN(R) with Subdweller Shrapnel Launcher Last Messages --------------- ZS-AD9(R) destroyed. Dropped Sml. Laser. Acquired Sub. Laser. Dropped Sub. Optics. Acquired Sub. Optics. Dropped Med. Laser. Acquired Sub. Monowheel. Dropped Lgt. Treads. Subatomizers dissect the Disposable Heat Sink. Dropped Lgt. Ion Engine. Acquired 39 matter. Subatomizers dissect the Lgt. Treads, destroying it. Penetrated by HV Slug. 7B-LUR(R) destroyed. Acquired Sub. Optics. Acquired 28 matter. Sub. Machine Gun shoots sparks and powers down. HV Slug penetrates Wall. Sub. Power Source destroyed. Sub. Monowheel destroyed. Map ----- +----------------------------------------------------+ | ###??####### #####???? ###??????????????????? | | ############ ### ##??????????????????? | | ####### ### ## ####### ??????????????????? | | # ## ### ## #??????????????????? | | ## ##??????????????????? | | #####???????????????? | | ######??????????????? | | ###??????????????? | | ###?????????????? | | # ## ###?????????????? | | ## ## ##?????????????? | | ## ## ##?????????????? | | ## ## ##?????????????? | | ## #### ##?????????????? | | ####### ##?????????????? | | ## ##?????????????? | | ###### ####?????????????? | | ###### ######?????????????? | | ##?## # ####???????????????? | | ???## ### ## ##????????????????? | | ???#### ## #### ## #####?????????????? | | ???#### ## ######## # #####?????????????? | | ?????################ R ###????????????? | | ?????#########??##& "## ###????????????? | | ???????????????##"&# #< ##????????????? | | ???????????????##$ # @ ##????????????? | | ???????????????## "# #< ### ##????????????? | | ??????????????????#### %%#### ###????????????? | | ??????????????????###### ##??####????????????? | | ????????????????????#### ##?????????????????? | | ??????????????????????### ##?????????????????? | | ??????????????????????### ?????????????????? | | ???????????????????????## ## ?????????????????? | | ??????????????????????? ### #???????????????? | | ???????????????????????? # ##???????????????? | | ???????????????????????? ??? #???????????????? | | ???????????????????????? ??? ???????????????? | | ???????????????????????? ???? ???????????????? | | ????#####??????????????? #????? ???????????????? | | #???#######???????????? ##?????????????????????? | | ###### #########??### ? ###?????????????????????? | | ###### #######?#### ? #####???????????????????? | | ### %##### # ???#### ??????????????????? | | ### #### # ## ??????????????????? | | ### ### ## ## ??????????????????? | | %> % # ### ### ???????????????????? | | ##### ### ## ????????????????????? | | ###### ## ??????????????????????? | | # # ####### ### ##??????????????????????? | | ### # ## ####??????????????????????? | +----------------------------------------------------+ Best States ------------- Heat Dissipation 25 Energy Generation 15 Energy Capacity 250 Matter Stores 300 Matter Capacity 300 Sight Range 16 Terrain Scan Range 16 Terrain Scan Density 10 Evasion (%) 41 Recoil Reduction 2 Item Schematics ----------------- None Robot Schematics ------------------ None Fabricated ------------ Nothing Repaired ---------- Nothing Alien Tech Used ----------------- None Achievements -------------- None Challenges ------------ None Game ------ Seed GlidesysInsulatedMallet Manual? 0 Play Time 00:15:36 Cumulative 126.9 hours Start 2025.06.22 @ 22:25:02 End 2025.06.22 @ 22:36:18 Sessions 1 Manual Loads 0 Difficulty Rogue Special Mode None Game No. 135 Rogue 135 Adventurer 0 Explorer 0 Win Type - Total 2 Types 1/0/0/1/0/0/0/0/0/0 Lore% 61 Gallery% 57 Achievement% 51 Wizard Run 0 Options --------- Layout 1 ASCII 0 Keyboard 1 Movement Numpad Keybinds 0 Fullscreen 1 Font 32/SmallcapsGlow Map View 77x35 Zoom Use 0% Tactical HUD 0 Map Filters NONE Filters NONE Steam 1 RUN: cc229e92-2896-463c-add8-8a3a2251f03a